bitfinex-derivatives/quotes_BNBF0:USTF0_20250211
["timestamp","ask_amount","ask_price","bid_price","bid_amount"]
[1739242941660,0.32471749,615.92,614.92,0.32524556]
[1739242941661,1.07836983,615.76,614.92,0.32524556]
[1739242941861,1.49212311,615.75,614.92,0.32524556]
[1739242942167,2.57051408,615.74,614.92,0.32524556]
[1739242942468,1.64914425,615.73,614.93,0.26265438]
[1739242942765,1.64914425,615.73,614.92,0.32524556]
[1739242942766,2.72751408,615.73,614.92,0.32524556]
[1739242942965,2.57051408,615.72,614.92,0.32524556]
[1739242943168,1.49214425,615.71,614.92,0.32524556]
[1739242943566,1.07836983,615.7,614.92,0.32524556]
[1739242943968,0.157,615.73,614.92,0.32524556]
[1739242944369,1.125,615.7,614.92,0.32524556]
[1739242944567,1.49391615,615.69,614.92,0.32524556]
[1739242944966,1.125,615.7,614.92,0.32524556]
[1739242944967,1.07836983,615.68,614.92,0.32524556]
[1739242945570,1.07836983,615.69,614.92,0.32524556]
[1739242946369,1.125,615.7,614.92,0.32524556]
[1739242946865,1.125,615.7,614.93,0.26263465]
[1739242949071,2.518,615.7,614.93,0.26263465]
[1739242949271,2.518,615.7,614.92,0.32524556]
[1739242949473,2.518,615.7,614.93,0.26260126]
[1739242950469,2.895,615.7,614.93,0.26260126]
[1739242952673,2.895,615.7,614.92,0.32524556]
[1739242952872,2.895,615.7,614.93,0.26260073]
[1739242954580,2.895,615.7,614.94,0.26261415]
[1739242954779,2.895,615.7,614.93,0.26261415]
[1739242956182,2.895,615.7,614.92,0.32524556]
[1739242956382,2.895,615.7,614.93,0.26261279]
[1739242957978,2.895,615.7,614.92,0.32524556]
[1739242958180,2.895,615.7,614.93,0.26261755]
[1739242961187,0.731,615.55,614.93,0.26261755]
[1739242969792,1.512,615.55,614.93,0.26261755]
[1739242970887,1.512,615.55,614.94,0.26262374]
[1739242971085,1.512,615.55,614.93,0.26262374]
[1739242971285,0.781,615.55,614.94,0.26262374]
[1739242971491,0.781,615.55,614.95,0.26262374]
[1739242971692,0.781,615.55,614.93,0.26262374]
[1739242971894,0.781,615.55,614.94,0.26262374]
[1739242972092,0.781,615.55,614.93,0.26262374]
[1739242972592,0.781,615.55,614.92,0.32524556]
[1739242972793,0.781,615.55,614.93,0.26262197]
[1739242972995,1.158,615.55,614.93,0.26262197]
[1739242973491,1.079,615.21,614.93,0.26262197]
[1739242974788,1.079,615.21,614.92,0.32524556]
[1739242975894,1.19745275,616.58,614.92,0.32524556]
[1739242976096,1.49276054,615.91,614.92,0.32524556]
[1739242976493,1.07959128,615.9,614.92,0.32524556]
[1739242976693,1.49276054,615.89,614.92,0.32524556]
[1739242977095,1.07959128,615.88,614.92,0.32524556]
[1739242977297,0.47075444,614.85,614.83,1.69721601]
[1739242977501,0.47075444,614.85,614.84,0.26267075]
[1739242977797,0.05591078,614.85,614.84,0.26267075]
[1739242978200,1.49286722,615.88,614.84,0.26267075]
[1739242978391,1.07958604,615.87,614.84,0.26267075]
[1739242978592,1.49286722,615.86,614.84,0.26267075]
[1739242979097,2.57245326,615.85,614.84,0.26267075]
[1739242979400,1.49286722,615.84,614.84,0.26267075]
[1739242979600,2.57245326,615.83,614.84,0.26267075]
[1739242979898,1.49286722,615.82,614.84,0.26267075]
[1739242980100,1.063,615.79,614.83,1.69721601]
[1739242980400,2.57245326,615.78,614.84,0.2626531]
[1739242980695,1.49286722,615.77,614.84,0.2626531]
[1739242980893,1.49395922,615.76,614.84,0.2626531]
[1739242981093,2.57354526,615.75,614.84,0.2626531]
[1739242981298,1.49395922,615.74,614.84,0.2626531]
[1739242981500,1.49395922,615.74,614.85,0.26265401]
[1739242981702,1.07958604,615.73,614.84,0.26265401]
[1739242981999,1.07958604,615.73,614.83,1.69721601]
[1739242982000,1.07958604,615.73,614.85,0.26265401]
[1739242982199,1.07958604,615.73,614.84,0.26265401]
[1739242982399,1.07958604,615.78,614.85,0.26265401]
[1739242982599,1.49428734,615.77,614.84,0.26265401]
[1739242982899,1.49428734,615.77,614.85,0.26265401]
[1739242983103,1.07958604,615.76,614.84,0.26265401]
[1739242983301,1.49428734,615.75,614.83,1.69721601]
[1739242983497,1.49428734,615.75,614.84,0.26265624]
[1739242983700,1.07958604,615.74,614.84,0.26265624]
[1739242983899,1.49428734,615.73,614.84,0.26265624]
[1739242984093,1.07958604,615.72,614.84,0.26265624]
[1739242984299,1.49428734,615.71,614.84,0.26265624]
[1739242984497,1.07958604,615.7,614.84,0.26265624]
[1739242984699,1.49428734,615.69,614.84,0.26265624]
[1739242985301,1.07958604,615.68,614.84,0.26265624]
[1739242985500,1.4932715,615.67,614.84,0.26265624]
[1739242986202,2.57282485,615.66,614.84,0.26265624]
[1739242986399,1.49323881,615.65,614.84,0.26265624]
[1739242987002,1.49323881,615.65,614.85,0.26265624]
[1739242987202,1.49323881,615.64,614.77,1.20973791]
[1739242987405,1.49323881,615.63,614.77,1.20973791]
[1739242987705,1.08570053,615.62,614.77,1.20973791]
[1739242987907,1.49323881,615.61,614.77,1.20973791]
[1739242988204,1.08570053,615.6,614.77,1.20973791]
[1739242988406,1.49323881,615.59,614.77,1.20973791]
[1739242988904,1.49231114,615.58,614.77,1.20973791]
[1739242989200,1.49231114,615.57,614.77,1.20973791]
[1739242989600,1.08570053,615.56,614.17,1.20973791]
[1739242989798,1.49231114,615.55,614.19,0.32563213]
[1739242989999,1.08570053,615.54,614.2,0.26276604]
[1739242990199,1.49231114,615.53,614.22,0.32561622]
[1739242990404,0.767,614.87,614.23,0.26276604]
[1739242990601,0.767,614.87,614.24,0.32560562]
[1739242990804,0.767,614.87,614.25,0.26276604]
[1739242991005,0.767,614.87,614.26,0.32559502]
[1739242991204,0.767,614.87,614.27,0.26276604]
[1739242991405,0.767,614.87,614.28,0.32558442]
[1739242991605,0.767,614.87,614.29,0.26276604]
[1739242991803,0.767,614.87,614.3,0.32557382]
[1739242992006,0.767,614.87,614.31,0.26276604]
[1739242992205,0.767,614.87,614.32,0.32556322]
[1739242992400,0.767,614.87,614.33,0.26276604]
[1739242992602,0.767,614.87,614.34,0.32555262]
[1739242992808,0.767,614.87,614.35,0.26276604]
[1739242993005,0.767,614.87,614.36,0.32554202]
[1739242993206,0.767,614.87,614.37,0.26276604]
[1739242993408,0.767,614.87,614.38,0.32553143]
[1739242993603,0.767,614.87,614.39,0.26276604]
[1739242993910,0.767,614.87,614.4,0.32552083]
[1739242994111,0.767,614.87,614.41,0.26276723]
[1739242994315,0.767,614.87,614.42,0.32551023]
[1739242994513,0.767,614.87,614.43,0.26276723]
[1739242994812,0.767,614.87,614.44,0.32549964]
[1739242995011,0.767,614.87,614.45,0.26276723]
[1739242995213,0.767,614.87,614.46,0.32548904]
[1739242995511,0.767,614.87,614.47,0.26276723]
[1739242995811,0.767,614.87,614.48,0.26278225]
[1739242997513,0.157,615.57,614.48,0.26278225]
[1739242998514,0.731,614.93,614.48,0.26278225]
[1739243001314,0.731,614.93,614.49,0.26280819]
[1739243001516,0.731,614.93,614.5,0.26280819]
[1739243001812,0.731,614.93,614.51,0.26280819]
[1739243002016,0.731,614.93,614.48,0.26280819]
[1739243002317,0.731,614.93,614.49,0.26280819]
[1739243002516,0.731,614.93,614.48,0.26280819]
[1739243002716,0.731,614.93,614.49,0.26280819]
[1739243002918,0.731,614.93,614.48,0.26280819]
[1739243003112,0.731,614.93,614.49,0.26281857]
[1739243003313,0.731,614.93,614.48,0.26281857]
[1739243003512,0.731,614.93,614.49,0.26281857]
[1739243003715,0.731,614.93,614.48,0.26281857]
[1739243003917,0.731,614.93,614.49,0.26281857]
[1739243004113,0.731,614.93,614.48,0.26281857]
[1739243004317,0.731,614.93,614.47,0.32548375]
[1739243004517,0.731,614.93,614.48,0.26281913]
[1739243004919,0.731,614.93,614.47,0.32548375]
[1739243005115,0.731,614.93,614.48,0.26281744]
[1739243005320,1.556,614.93,614.48,0.26281744]
[1739243006622,0.825,614.93,614.48,0.26281744]
[1739243007219,0.158,614.92,614.48,0.26281744]
[1739243007920,1.059,614.68,614.48,0.26281744]
[1739243008517,1.059,614.68,614.47,0.32548375]
[1739243008719,1.059,614.68,614.48,0.26280836]
[1739243009914,1.059,614.68,614.47,0.32548375]
[1739243010714,1.059,614.68,614.48,0.26282511]
[1739243016925,0.158,614.92,614.48,0.26282511]
[1739243017225,0.77,614.68,614.48,0.26282511]
[1739243017827,0.77,614.68,614.47,0.32548375]
[1739243018129,0.37670319,614.47,614.42,1.69830657]
[1739243018631,0.04698441,614.47,614.42,1.69830657]
[1739243019326,0.77,614.68,614.42,1.69830657]
[1739243021935,0.77,614.68,614.42,2.90804448]
[1739243022533,0.77,614.68,614.42,3.23355471]
[1739243024233,0.77,614.68,614.52,1.20973791]
[1739243025638,1.147,614.68,614.65,1.20973791]
[1739243026631,2.057,614.68,614.65,1.20973791]
[1739243028138,2.057,614.68,614.46,1.69814773]
[1739243028338,2.057,614.68,614.47,0.32548375]
[1739243030741,2.057,614.68,614.5,1.20973791]
[1739243031041,2.057,614.68,614.51,0.32546256]
[1739243031943,0.158,614.92,614.51,0.32546256]
[1739243033143,0.915,614.92,614.51,0.32546256]
[1739243034645,1.715,614.92,614.51,0.32546256]
[1739243035044,1.557,614.92,614.51,0.32546256]
[1739243035441,0.20171588,614.92,614.51,0.32546256]
[1739243036244,0.158,614.91,614.51,0.32546256]
[1739243038147,0.158,614.91,614.57,1.20973791]
[1739243040943,0.158,614.91,614.6,1.20973791]
[1739243043151,0.158,614.91,614.51,0.32546256]
[1739243043152,0.158,614.91,614.58,1.20973791]
[1739243046054,0.158,614.91,614.6,1.20973791]
[1739243047755,0.01814819,614.92,614.6,1.20973791]
[1739243047956,0.701,615.03,614.6,1.20973791]
[1739243048157,0.701,615.03,614.51,0.32546256]
[1739243049756,1.24,615.03,614.51,0.32546256]
[1739243049956,1.24,615.03,614.53,1.20973791]
[1739243051851,1.24,615.03,614.51,0.32546256]
[1739243062062,2.116,615.03,614.51,0.32546256]
[1739243065566,2.116,615.03,614.6,1.20973791]
[1739243068170,2.116,615.03,614.54,1.69772661]
[1739243068171,2.116,615.03,614.59,1.20973791]
[1739243069971,2.116,615.03,614.61,1.20973791]
[1739243071268,3.019,615.03,614.61,1.20973791]
[1739243072569,3.019,615.03,614.54,1.69772661]
[1739243075075,3.019,615.03,614.56,1.20973791]
[1739243076576,3.019,615.03,614.54,1.69772661]
[1739243080372,2.116,615.03,614.54,1.69772661]
[1739243081378,0.981,614.68,614.54,1.69772661]
[1739243082677,0.16418446,614.68,614.54,1.69772661]
[1739243082979,0.54,614.68,614.54,1.69772661]
[1739243084785,0.29817088,614.68,614.54,1.69772661]
[1739243085884,1.23917088,614.68,614.55,0.32544137]
[1739243092184,1.23917088,614.68,614.61,1.20973791]
[1739243092389,1.23917088,614.68,614.62,0.32540431]
[1739243093492,0.42122171,614.86,614.62,0.32540431]
[1739243094485,0.42122171,614.86,614.63,1.20973791]
[1739243096692,0.42122171,614.86,614.63,1.53513693]
[1739243096889,0.42122171,614.86,614.63,0.32539902]
[1739243098795,0.23414618,614.86,614.64,1.20973791]
[1739243100595,0.23414618,614.86,614.65,0.32538843]
[1739243101698,0.23414618,614.86,614.74,1.20973791]
[1739243103296,0.23414618,614.86,614.74,1.5350787]
[1739243103597,0.23414618,614.86,614.75,0.3253355]
[1739243103796,0.048518,614.86,614.75,0.3253355]
[1739243103998,0.738,615.36,614.75,0.3253355]
[1739243104997,0.185,615.56,614.75,0.3253355]
[1739243106199,0.995,615.17,614.75,0.3253355]
[1739243106502,0.995,615.17,615.14,1.20973791]
[1739243107296,0.185,615.56,615.14,1.20973791]
[1739243107999,0.185,615.56,614.75,0.3253355]
[1739243108394,0.935,615.12,614.75,0.3253355]
[1739243116501,0.185,615.56,614.75,0.3253355]
[1739243117502,1.138,614.87,614.75,0.3253355]
[1739243122307,0.185,615.56,614.75,0.3253355]
[1739243130909,0.912,615.56,614.75,0.3253355]
[1739243134308,1.163,615.48,614.75,0.3253355]
[1739243135813,1.347,615.48,614.75,0.3253355]
[1739243143923,1.347,615.48,614.97,1.20973791]
[1739243144219,0.184,615.48,614.98,0.32521382]
[1739243145423,0.983,615.4,614.98,0.32521382]
[1739243151019,1.167,615.4,614.98,0.32521382]
[1739243151818,1.167,615.4,615.08,1.20973791]
[1739243152022,1.167,615.4,615.09,0.32515566]
[1739243152222,0.6616987,615.4,615.09,0.32515566]
[1739243152418,0.184,615.4,615.09,0.32515566]
[1739243153223,0.03868445,615.4,615.09,0.32515566]
[1739243153423,1.06,615.81,615.09,0.32515566]
[1739243154325,1.06,615.81,615.15,1.20973791]
[1739243154526,1.06,615.81,615.16,0.32511866]
[1739243156325,0.808,616.11,615.16,0.32511866]
[1739243157027,0.846,616.11,615.16,0.32511866]
[1739243157425,2.216,616.11,615.16,0.32511866]
[1739243163031,1.408,616.11,615.16,0.32511866]
[1739243164130,0.808,615.89,615.16,0.32511866]
[1739243169539,1.667,615.89,615.16,0.32511866]
[1739243169933,1.667,615.89,615.19,1.20973791]
[1739243171337,0.859,615.89,615.19,1.20973791]
[1739243172438,0.809,615.69,615.19,1.20973791]
[1739243172836,0.809,615.69,615.16,0.32511866]
[1739243180343,0.859,615.89,615.16,0.32511866]
[1739243181647,0.809,615.41,615.16,0.32511866]
[1739243184850,1.757,615.41,615.16,0.32511866]
[1739243191454,0.948,615.41,615.16,0.32511866]
[1739243192756,0.948,615.41,615.11,1.69645759]
[1739243192757,0.48488134,615.16,615.11,1.69645759]
[1739243193757,0.948,615.41,615.11,1.69645759]
[1739243195352,0.986,615.41,615.11,1.69645759]
[1739243204959,0.986,615.41,615.12,0.32513981]
[1739243206463,0.986,615.41,615.33,1.20973791]
[1739243206859,0.038,615.41,615.33,1.20973791]
[1739243209057,0.038,615.41,615.3,1.20973791]
[1739243209562,0.038,615.41,615.3,1.5347826]
[1739243210360,0.038,615.41,615.31,0.32503941]
[1739243212367,0.038,615.41,615.33,1.20973791]
[1739243213662,0.038,615.41,615.34,0.32502356]
[1739243219573,0.02183449,615.41,615.34,0.32502356]
[1739243219767,0.484,615.76,615.34,0.32502356]
[1739243226475,1.314,615.91,615.34,0.32502356]
[1739243227477,0.484,615.46,615.34,0.32502356]
[1739243229080,0.10277487,615.46,615.34,0.32502356]
[1739243229280,1.314,615.91,615.34,0.32502356]
[1739243237286,0.022,616.27,615.34,0.32502356]
[1739243238388,0.886,616.27,615.34,0.32502356]
[1739243243192,0.103,616.01,615.34,0.32502356]
[1739243247695,0.103,616.01,615.37,1.20973791]
[1739243248291,0.103,616.01,615.38,0.32500243]
[1739243249494,0.103,616.01,615.62,1.20973791]
[1739243251198,0.125,616.01,615.62,1.20973791]
[1739243251900,0.125,616.01,615.52,1.20973791]
[1739243252099,0.022,616.01,615.52,1.20973791]
[1739243253297,0.103,615.91,615.52,1.20973791]
[1739243253699,1.071,615.91,615.52,1.20973791]
[1739243254903,1.071,615.91,615.38,0.32500243]
[1739243262412,0.968,615.91,615.38,0.32500243]
[1739243263615,0.103,615.5,615.38,0.32500243]
[1739243267621,0.05917392,615.5,615.38,0.32500243]
[1739243267824,0.022,616.01,615.38,0.32500243]
[1739243268918,1.326,616.01,615.38,0.32500243]
[1739243283631,1.326,616.01,615.39,1.20973791]
[1739243283827,1.326,616.01,615.4,0.32499187]
[1739243289530,1.326,616.01,615.42,1.20973791]
[1739243289734,1.326,616.01,615.43,0.32497603]
[1739243291439,0.059,615.85,615.43,0.32497603]
[1739243292837,0.081,615.85,615.43,0.32497603]
[1739243293438,0.04663812,615.85,615.43,0.32497603]
[1739243293639,0.022,615.85,615.43,0.32497603]
[1739243294537,0.0047958,615.85,615.43,0.32497603]
[1739243295643,0.0007958,615.85,615.43,0.32497603]
[1739243296241,0.0007958,615.85,615.5,1.20973791]
[1739243296441,0.0007958,615.85,615.51,0.32493379]
[1739243299247,0.0007958,615.85,615.53,1.20973791]
[1739243299447,0.0007958,615.85,615.54,0.32491795]
[1739243301346,0.0007958,615.85,615.56,1.20973791]
[1739243301545,0.0007958,615.85,615.57,0.32490212]
[1739243303442,0.965,616.21,615.57,0.32490212]
[1739243304046,0.965,616.21,615.57,1.53464003]
[1739243306846,0.965,616.21,615.7,1.20973791]
[1739243307049,0.965,616.21,615.71,0.32482824]
[1739243309347,0.965,616.21,615.73,1.20973791]
[1739243311251,0.965,616.21,615.71,0.32482824]
[1739243311451,0.965,616.21,615.74,0.32481242]
[1739243315454,0.025,616.19,615.74,0.32481242]
[1739243322457,1.173,616.2,615.74,0.32481242]
[1739243323555,0.024,615.97,615.74,0.32481242]
[1739243330763,1.173,616.2,615.74,0.32481242]
[1739243331962,1.173,616.2,615.74,0.30081242]
[1739243341967,1.173,616.2,615.68,1.69502533]
[1739243353976,1.173,616.2,615.72,1.20973791]
[1739243356679,1.173,616.2,615.68,1.69502533]
[1739243367886,1.173,616.2,615.78,1.20973791]
[1739243370189,1.173,616.2,615.72,1.69442697]
[1739243397411,1.173,616.2,615.72,2.01924994]
[1739243397708,1.173,616.2,615.73,0.32481769]
[1739243398507,1.173,616.2,615.77,1.20973791]
[1739243401110,1.173,616.2,615.74,1.20973791]
[1739243404411,1.173,616.2,615.84,1.20973791]
[1739243407014,1.61647226,617.16,615.81,1.20973791]
[1739243407208,4.83086326,617.15,615.81,1.20973791]
[1739243407407,2.40116993,617.14,615.81,1.20973791]
[1739243407608,2.40116993,617.13,615.81,1.20973791]
[1739243407811,2.40116993,617.12,615.81,1.20973791]
[1739243408113,2.40116993,617.11,615.81,1.20973791]
[1739243408313,1.51828391,617.1,615.81,1.20973791]
[1739243408508,4.12126713,617.12,615.81,1.20973791]
[1739243408714,3.02326713,617.09,615.81,1.20973791]
[1739243409716,3.02326713,617.11,615.81,1.20973791]
[1739243409916,0.32409658,617.1,615.81,1.20973791]
[1739243410313,0.32409658,617.1,615.86,1.20973791]
[1739243410914,1.16279505,617.09,615.86,1.20973791]
[1739243412120,1.16279505,617.09,615.82,0.32477022]
[1739243414522,2.39028557,617.08,615.82,0.32477022]
[1739243414724,2.39028557,617.07,615.82,0.32477022]
[1739243414915,2.39028557,617.06,615.82,0.32477022]
[1739243415115,1.50892631,617.05,615.82,0.32477022]
[1739243415318,1.50868812,617.04,615.82,0.32477022]
[1739243415518,3.01893693,617.06,615.82,0.32477022]
[1739243415719,2.38992826,617.05,615.82,0.32477022]
[1739243415917,2.38993313,617.04,615.82,0.32477022]
[1739243416119,1.16112959,617.05,615.82,0.32477022]
[1739243416321,1.50869997,617.04,615.82,0.32477022]
[1739243417122,1.16112959,617.09,615.82,0.32477022]
[1739243417322,3.55099251,617.08,615.82,0.32477022]
[1739243417515,2.38986292,617.07,615.82,0.32477022]
[1739243417716,2.38986292,617.06,615.82,0.32477022]
[1739243417919,2.38986292,617.05,615.82,0.32477022]
[1739243418117,1.50865587,617.04,615.82,0.32477022]
[1739243418319,3.01893693,617.06,615.82,0.32477022]
[1739243418520,3.01893693,617.03,615.82,0.32477022]
[1739243419523,1.16112959,617.09,615.82,0.32477022]
[1739243419725,2.38907186,617.08,615.82,0.32477022]
[1739243419917,2.38907186,617.07,615.82,0.32477022]
[1739243420118,2.38907186,617.06,615.82,0.32477022]
[1739243420319,1.50815756,617.05,615.82,0.32477022]
[1739243420624,3.01893693,617.05,615.82,0.32477022]
[1739243421224,0.32409658,617.1,615.82,0.32477022]
[1739243421225,1.16112959,617.09,615.82,0.32477022]
[1739243421423,2.38870676,617.08,615.82,0.32477022]
[1739243421622,2.38870676,617.07,615.82,0.32477022]
[1739243421925,1.16112959,617.09,615.82,0.32477022]
[1739243422119,1.50789508,617.08,615.82,0.32477022]
[1739243422318,1.16112959,617.09,615.82,0.32477022]
[1739243424423,0.32409658,617.1,615.82,0.32477022]
[1739243429623,1.15848313,617.09,615.82,0.32477022]
[1739243430727,1.94748313,617.09,615.82,0.32477022]
[1739243431326,3.54322818,617.08,615.82,0.32477022]
[1739243431521,0.87932588,617.07,615.82,0.32477022]
[1739243431728,1.50550075,617.06,615.82,0.32477022]
[1739243431924,1.15848313,617.06,615.82,0.32477022]
[1739243432320,1.50547968,617.05,615.82,0.32477022]
[1739243432820,1.50547968,617.04,615.82,0.32477022]
[1739243433128,3.01199732,617.04,615.82,0.32477022]
[1739243434129,0.789,617.09,615.82,0.32477022]
[1739243434130,1.15848313,617.08,615.82,0.32477022]
[1739243434325,2.7089464,617.07,615.82,0.32477022]
[1739243434528,1.50544602,617.06,615.82,0.32477022]
[1739243434922,4.51744334,617.06,615.82,0.32477022]
[1739243435127,3.01199732,617.06,615.82,0.32477022]
[1739243435830,1.15848313,617.06,615.82,0.32477022]
[1739243438331,1.50601844,617.05,615.85,1.20973791]
[1739243438934,3.01199732,617.04,615.85,1.20973791]
[1739243439632,1.15848313,617.06,615.85,1.20973791]
[1739243439831,2.38607062,617.05,615.85,1.20973791]
[1739243440026,1.50625683,617.04,615.85,1.20973791]
[1739243440232,3.01199732,617.04,615.9,1.20973791]
[1739243440928,1.15848313,617.06,615.9,1.20973791]
[1739243441129,1.50649545,617.05,615.9,1.20973791]
[1739243441327,3.01199732,617.04,615.9,1.20973791]
[1739243442132,3.01199732,617.04,615.91,0.32472276]
[1739243442333,1.15848313,617.06,615.91,0.32472276]
[1739243442833,1.15848313,617.06,615.99,1.20973791]
[1739243444127,1.15848313,617.06,616.0,0.32467532]
[1739243444634,0.32411233,617.07,616.0,0.32467532]
[1739243445431,0.32411233,617.07,616.08,1.20973791]
[1739243445630,0.32411233,617.07,616.09,0.32462789]
[1739243449741,1.025,617.08,616.09,0.32462789]
[1739243477257,1.15857059,617.07,616.09,0.32462789]
[1739243482663,2.66430412,617.06,616.09,0.32462789]
[1739243482868,2.38523786,617.05,616.09,0.32462789]
[1739243483067,2.38523786,617.04,616.09,0.32462789]
[1739243483268,1.50573353,617.03,616.09,0.32462789]
[1739243483465,1.15857059,617.06,616.09,0.32462789]
[1739243483672,3.01244927,617.02,616.09,0.32462789]
[1739243484064,0.88,617.02,616.09,0.32462789]
[1739243484569,1.15857059,617.01,616.09,0.32462789]
[1739243488569,0.88,617.02,616.09,0.32462789]
[1739243505686,1.16027955,617.01,616.09,0.32462789]
[1739243506680,3.01322218,617.23,616.09,0.32462789]
[1739243506879,3.79749509,617.22,616.09,0.32462789]
[1739243507180,4.1215339,617.21,616.09,0.32462789]
[1739243507384,4.12145554,617.2,616.09,0.32462789]
[1739243507584,4.1214608,617.19,616.09,0.32462789]
[1739243507885,4.12146605,617.18,616.09,0.32462789]
[1739243508080,3.79741148,617.17,616.09,0.32462789]
[1739243508279,3.79741148,617.16,616.09,0.32462789]
[1739243508483,2.38834243,617.15,616.09,0.32462789]
[1739243508677,3.79723402,617.14,616.09,0.32462789]
[1739243508888,2.38834243,617.13,616.09,0.32462789]
[1739243509079,2.38834243,617.12,616.09,0.32462789]
[1739243509282,2.38834243,617.11,616.09,0.32462789]
[1739243509484,2.3882075,617.1,616.09,0.32462789]
[1739243509688,2.3882075,617.09,616.09,0.32462789]
[1739243509882,2.3882075,617.08,616.09,0.32462789]
[1739243510088,2.3882075,617.07,616.09,0.32462789]
[1739243510288,1.50753934,617.06,616.09,0.32462789]
[1739243510488,3.01322218,617.09,616.09,0.32462789]
[1739243510688,1.50744954,617.08,616.09,0.32462789]
[1739243510885,3.01322218,617.05,616.09,0.32462789]
[1739243511290,3.01322218,617.07,616.09,0.32462789]
[1739243512087,1.16027955,617.06,616.09,0.32462789]
[1739243512286,1.50748237,617.05,616.09,0.32462789]
[1739243512683,3.01322218,617.04,616.09,0.32462789]
[1739243513189,1.16027955,617.03,616.09,0.32462789]
[1739243513989,1.16027955,617.02,616.09,0.32462789]
[1739243514587,1.16027955,617.15,616.09,0.32462789]
[1739243514794,3.79749303,617.14,616.09,0.32462789]
[1739243514993,3.79749303,617.13,616.09,0.32462789]
[1739243515194,2.38842688,617.12,616.09,0.32462789]
[1739243515386,2.38842688,617.11,616.09,0.32462789]
[1739243515588,2.38842688,617.1,616.09,0.32462789]
[1739243515787,2.38842688,617.09,616.09,0.32462789]
[1739243516093,2.38842688,617.08,616.09,0.32462789]
[1739243516290,2.38842688,617.07,616.09,0.32462789]
[1739243516490,2.38842688,617.06,616.09,0.32462789]
[1739243516789,2.38842688,617.05,616.09,0.32462789]
[1739243517094,2.38842688,617.04,616.09,0.32462789]
[1739243517293,1.50776054,617.03,616.12,1.20973791]
[1739243517793,3.01322218,617.02,616.12,1.20973791]
[1739243518794,1.16027955,617.01,616.12,1.20973791]
[1739243519497,1.16027955,617.0,616.12,1.20973791]
[1739243519691,1.16027955,617.0,616.09,0.32462789]
[1739243520091,1.16027955,616.99,616.09,0.32462789]
[1739243520797,1.16027955,617.15,616.09,0.32462789]
[1739243520997,2.38998016,617.14,616.09,0.32462789]
[1739243521197,2.38998016,617.13,616.09,0.32462789]
[1739243521399,2.38998016,617.12,616.09,0.32462789]
[1739243521697,5.40320234,617.11,616.09,0.32462789]
[1739243521901,0.88124509,617.1,616.09,0.32462789]
[1739243522198,2.39017562,617.1,616.09,0.32462789]
[1739243522398,3.55045517,617.09,616.09,0.32462789]
[1739243522698,2.39017562,617.08,616.09,0.32462789]
[1739243522897,1.50893053,617.07,616.09,0.32462789]
[1739243523091,1.5094805,617.06,616.09,0.32462789]
[1739243523497,2.2774805,617.06,616.09,0.32462789]
[1739243523699,0.768,617.06,616.09,0.32462789]
[1739243524099,2.39128118,617.05,616.09,0.32462789]
[1739243524400,2.39128118,617.04,616.09,0.32462789]
[1739243524591,1.16027955,617.05,616.09,0.32462789]
[1739243524592,1.50955867,617.03,616.09,0.32462789]
[1739243524794,3.01322218,617.04,616.09,0.32462789]
[1739243525701,1.16027955,617.03,616.09,0.32462789]
[1739243526601,1.16027955,617.02,616.09,0.32462789]
[1739243526999,1.16027955,617.01,616.09,0.32462789]
[1739243527403,1.51106295,617.0,616.09,0.32462789]
[1739243527595,2.6713425,617.0,616.09,0.32462789]
[1739243527795,1.16027955,617.0,616.09,0.32462789]
[1739243528100,2.67169556,616.99,616.09,0.32462789]
[1739243528396,2.39431336,616.98,616.09,0.32462789]
[1739243528601,1.51148168,616.97,616.09,0.32462789]
[1739243528801,1.16027955,616.99,616.09,0.32462789]
[1739243529001,3.01322218,616.97,616.09,0.32462789]
[1739243529903,1.16027955,616.96,616.09,0.32462789]
[1739243530497,1.16027955,616.95,616.09,0.32462789]
[1739243531605,0.768,617.06,616.09,0.32462789]
[1739243531804,1.51202295,617.05,616.09,0.32462789]
[1739243531999,0.768,617.06,616.09,0.32462789]
[1739243532202,1.51207132,617.05,616.09,0.32462789]
[1739243532409,0.768,617.06,616.09,0.32462789]
[1739243532605,1.51207015,617.05,616.09,0.32462789]
[1739243532800,1.16349634,617.05,616.09,0.32462789]
[1739243533206,1.51212879,617.04,616.09,0.32462789]
[1739243533397,3.01643897,617.03,616.09,0.32462789]
[1739243534806,0.768,617.06,616.16,1.20973791]